bitfinex-derivatives/quotes_BTCF0:USTF0_20250822
["timestamp","ask_amount","ask_price","bid_price","bid_amount"]
[1755855610587,1.09668772,112980.0,112970.0,1.01261772]
[1755855611290,0.81708,112980.0,112970.0,1.01261772]
[1755855611584,1.09668772,112980.0,112970.0,1.01261772]
[1755855611786,1.09668772,112980.0,112970.0,0.65181772]
[1755855612089,1.09668772,112980.0,112970.0,1.01261772]
[1755855612391,1.09668772,112980.0,112970.0,0.65181772]
[1755855613087,1.98709544,112980.0,112970.0,0.12221]
[1755855613391,0.028,112970.0,112960.0,0.03272]
[1755855613582,0.30760772,112970.0,112960.0,0.06714]
[1755855613786,0.30760772,112970.0,112960.0,0.37724772]
[1755855614281,0.66840772,112970.0,112960.0,0.37724772]
[1755855614487,0.66840772,112970.0,112960.0,0.09764]
[1755855614689,0.66840772,112970.0,112960.0,0.37824772]
[1755855615091,0.30760772,112970.0,112960.0,0.37824772]
[1755855615388,0.30760772,112970.0,112960.0,0.40154772]
[1755855615690,0.66840772,112970.0,112960.0,0.40154772]
[1755855615891,0.37861418,112970.0,112960.0,0.12194]
[1755855616287,0.73941418,112970.0,112960.0,0.12194]
[1755855618392,0.98941418,112970.0,112960.0,0.1071]
[1755855619692,1.80517418,112970.0,112960.0,0.1071]
[1755855620396,1.80517418,112970.0,112960.0,0.12141]
[1755855621497,1.80517418,112970.0,112960.0,0.40101772]
[1755855621498,0.62861418,112970.0,112960.0,0.40101772]
[1755855621798,0.08682646,112970.0,112960.0,1.29222544]
[1755855622093,0.07100646,112970.0,112960.0,1.29222544]
[1755855622293,0.81572,112970.0,112960.0,1.3161512]
[1755855622694,0.49772,112980.0,112970.0,0.11928]
[1755855622898,1.23224772,112980.0,112970.0,0.39888772]
[1755855624096,1.23224772,112980.0,112970.0,0.75968772]
[1755855624794,1.23324772,112980.0,112970.0,0.75968772]
[1755855625197,1.11272772,112980.0,112970.0,0.75968772]
[1755855625398,1.11272772,112980.0,112970.0,0.39888772]
[1755855625700,0.29700772,112980.0,112970.0,0.39888772]
[1755855625899,1.11268772,112980.0,112970.0,0.39888772]
[1755855626992,0.0174,112980.0,112970.0,0.75968772]
[1755855627193,0.0174,112980.0,112970.0,1.00968772]
[1755855627495,0.83304,112980.0,112970.0,1.00968772]
[1755855629198,0.001,112980.0,112970.0,1.28929544]
[1755855629589,0.8166,112980.0,112970.0,1.3132212]
[1755855629791,0.8166,112980.0,112970.0,0.78361348]
[1755855630299,0.001,112980.0,112970.0,0.78361348]
[1755855630499,0.8166,112980.0,112970.0,0.78361348]
[1755855630892,0.3608,112990.0,112970.0,0.7309652]
[1755855631091,1.19276,112990.0,112980.0,0.67849544]
[1755855631588,1.19276,112990.0,112980.0,0.92849544]
[1755855632294,1.19276,112990.0,112980.0,0.64876882]
[1755855632690,0.83196,112990.0,112980.0,0.64876882]
[1755855633093,2.28224,113000.0,112980.0,0.64876882]
[1755855633298,0.81552,112990.0,112980.0,0.39876882]
[1755855633490,2.28224,113000.0,112980.0,0.39876882]
[1755855633686,0.81648,112990.0,112980.0,0.11928]
[1755855633895,0.81648,112990.0,112980.0,0.39876882]
[1755855634196,0.81548,112990.0,112980.0,0.39876882]
[1755855635393,0.83188,112990.0,112980.0,0.39876882]
[1755855636402,0.83288,112990.0,112980.0,0.39876882]
[1755855638406,0.83288,112990.0,112980.0,0.11928]
[1755855638804,0.83288,112990.0,112980.0,0.39876882]
[1755855642204,0.84506,112990.0,112980.0,0.36454882]
[1755855642410,0.84506,112990.0,112980.0,0.39876882]
[1755855644211,0.84506,112990.0,112980.0,0.4229066]
[1755855648112,0.84506,112990.0,112980.0,0.3886866]
[1755855648514,0.84506,112990.0,112980.0,0.4234466]
[1755855650616,0.02958,112990.0,112980.0,0.4234466]
[1755855650818,0.83244,112990.0,112980.0,0.4234466]
[1755855651114,0.001,112990.0,112980.0,1.31373542]
[1755855653312,0.001,112990.0,112980.0,2.12873542]
[1755855654217,0.001,112990.0,112980.0,1.31373542]
[1755855654916,0.001,112990.0,112980.0,1.3376092]
[1755855655120,0.001,112990.0,112980.0,1.31373542]
[1755855656220,0.001,112990.0,112980.0,1.3376092]
[1755855656419,0.001,112990.0,112980.0,1.33748924]
[1755855657016,0.001,112990.0,112980.0,1.61691808]
[1755855657314,0.001,112990.0,112980.0,1.33748924]
[1755855657913,0.0088524,113010.0,112980.0,1.61691808]
[1755855658118,0.01572,113010.0,113000.0,1.03978768]
[1755855658321,0.01572,113010.0,113000.0,1.08180765]
[1755855660223,0.02459589,113010.0,113000.0,1.08180765]
[1755855660423,0.00887589,113010.0,113000.0,0.80231675]
[1755855660612,0.8148,113020.0,113000.0,0.80231675]
[1755855660816,0.8148,113020.0,113010.0,0.12013]
[1755855660817,0.83052,113020.0,113010.0,0.12013]
[1755855661016,0.8427,113020.0,113010.0,0.14426778]
[1755855663922,1.12306678,113020.0,113010.0,0.14426778]
[1755855664820,1.13193734,113020.0,113010.0,0.14426778]
[1755855665226,1.13193734,113020.0,113010.0,0.09560778]
[1755855665427,1.13193734,113020.0,113010.0,0.04736778]
[1755855665921,1.49273734,113020.0,113010.0,0.06990778]
[1755855666121,1.13193734,113020.0,113010.0,0.07960778]
[1755855666323,1.13193734,113020.0,113010.0,0.11436778]
[1755855666523,1.13193734,113020.0,113010.0,0.12826778]
[1755855667327,1.49273734,113020.0,113010.0,0.12826778]
[1755855667528,1.49273734,113020.0,113010.0,0.11436778]
[1755855667721,1.49273734,113020.0,113010.0,0.07960778]
[1755855669627,1.13193734,113020.0,113010.0,0.07960778]
[1755855669826,1.49273734,113020.0,113010.0,0.07960778]
[1755855670526,1.13193734,113020.0,113010.0,0.07960778]
[1755855671027,1.49273734,113020.0,113010.0,0.04736778]
[1755855673127,1.49273734,113020.0,113010.0,0.02323]
[1755855674420,0.0279,113010.0,113000.0,0.48270941]
[1755855674621,0.30726678,113010.0,113000.0,0.07504169]
[1755855674919,0.55726678,113010.0,113000.0,0.06534169]
[1755855675119,0.55726678,113010.0,113000.0,0.08788169]
[1755855675518,0.55726678,113010.0,113000.0,0.06534169]
[1755855675928,0.91806678,113010.0,113000.0,0.06534169]
[1755855676829,0.91806678,113010.0,113000.0,0.04211169]
[1755855677230,0.91806678,113010.0,113000.0,0.02433228]
[1755855677422,0.91806678,113010.0,112990.0,0.02323]
[1755855677622,1.10598678,113000.0,112990.0,0.0701134]
[1755855677823,1.10598678,113000.0,112990.0,0.0799234]
[1755855678429,0.84282,113000.0,112990.0,0.0799234]
[1755855680031,1.12218678,113000.0,112990.0,0.0799234]
[1755855680531,0.02838,113000.0,112990.0,0.0799234]
[1755855680731,1.12214678,113000.0,112990.0,0.0799234]
[1755855680931,0.84278,113000.0,112990.0,0.1145034]
[1755855681327,0.84278,113000.0,112990.0,0.49917718]
[1755855682435,1.12227329,113000.0,112990.0,0.77867047]
[1755855682731,1.12227329,113000.0,112990.0,0.80967047]
[1755855686637,0.02838,113000.0,112990.0,0.80967047]
[1755855686840,0.83056,113000.0,112990.0,0.80967047]
[1755855688336,0.83052,113000.0,112990.0,0.80967047]
[1755855693137,0.0162,113000.0,112990.0,0.80967047]
[1755855693338,0.83048,113000.0,112990.0,0.80967047]
[1755855693539,0.0162,113000.0,112990.0,0.80967047]
[1755855693844,0.83044,113000.0,112990.0,0.80967047]
[1755855694245,0.29167329,113010.0,112990.0,0.73723047]
[1755855694452,0.90080385,113020.0,113010.0,0.02416]
[1755855694650,1.71504385,113020.0,113010.0,0.42660669]
[1755855695356,1.99453714,113020.0,113010.0,0.1471134]
[1755855695549,1.43555056,113020.0,113010.0,0.1471134]
[1755855695750,1.71504385,113020.0,113010.0,0.1471134]
[1755855696755,1.46340385,113020.0,113010.0,0.1471134]
[1755855697054,1.10460385,113020.0,113010.0,0.1471134]
[1755855697359,1.10660385,113020.0,113010.0,0.1471134]
[1755855698254,1.46740385,113020.0,113010.0,0.05719]
[1755855698461,1.38609714,113020.0,113010.0,0.02416]
[1755855699450,1.74689714,113020.0,113010.0,0.02416]
[1755855699848,1.95065714,113020.0,113010.0,0.02416]
[1755855701264,1.58985714,113020.0,113010.0,0.02416]
[1755855701563,1.03087056,113020.0,113010.0,0.02416]
[1755855701765,1.58985714,113020.0,113010.0,0.04738]
[1755855702066,1.58985714,113020.0,113010.0,0.05719]
[1755855702863,1.58985714,113020.0,113010.0,0.09177]
[1755855703264,1.58985714,113020.0,113010.0,0.10814]
[1755855703466,1.58985714,113020.0,113010.0,0.12277]
[1755855704365,1.58985714,113020.0,113010.0,0.10814]
[1755855704866,0.77561714,113020.0,113010.0,0.40226329]
[1755855705066,0.21663056,113020.0,113010.0,0.42670003]
[1755855705366,1.31016385,113020.0,113010.0,0.42670003]
[1755855705854,1.10640385,113020.0,113010.0,0.42670003]
[1755855706361,1.10540385,113020.0,113010.0,0.42670003]
[1755855707264,1.10340385,113020.0,113010.0,0.42670003]
[1755855707465,1.10440385,113020.0,113010.0,0.42670003]
[1755855707965,1.38389714,113020.0,113010.0,0.42670003]
[1755855709453,1.38389714,113020.0,113010.0,0.11262674]
[1755855709660,1.38389714,113020.0,113010.0,0.37749003]
[1755855709661,1.74469714,113020.0,113010.0,0.37749003]
[1755855709966,1.38389714,113020.0,113010.0,0.37749003]
[1755855710266,0.82491056,113020.0,113010.0,0.41034003]
[1755855710563,1.10440385,113020.0,113010.0,0.41034003]
[1755855710866,1.10440385,113020.0,113010.0,0.42388003]
[1755855712366,1.10440385,113020.0,113010.0,0.14438674]
[1755855712563,1.10440385,113020.0,113010.0,0.42388003]
[1755855714871,1.10440385,113020.0,113010.0,0.14438674]
[1755855715169,1.10440385,113020.0,113010.0,0.42388003]
[1755855715369,1.10440385,113020.0,113010.0,0.11153674]
[1755855715370,1.38389714,113020.0,113010.0,0.11153674]
[1755855715575,1.38389714,113020.0,113010.0,0.08162674]
[1755855715962,1.38389714,113020.0,113010.0,0.05840674]
[1755855716168,1.74469714,113020.0,113010.0,0.05840674]
[1755855716368,1.74469714,113020.0,113010.0,0.04859674]
[1755855716770,1.99469714,113020.0,113010.0,0.04859674]
[1755855717171,0.62167056,113020.0,113010.0,0.04859674]
[1755855717373,0.01087056,113020.0,113010.0,0.42103003]
[1755855717574,1.31856385,113020.0,113010.0,0.42103003]
[1755855718067,1.59805714,113020.0,113010.0,0.42103003]
[1755855718676,1.59805714,113020.0,113010.0,0.14153674]
[1755855719176,1.95885714,113020.0,113010.0,0.09514674]
[1755855720382,1.67930234,113020.0,113010.0,0.09514674]
[1755855721686,1.67930234,113020.0,113010.0,0.12799674]
[1755855723877,1.31850234,113020.0,113010.0,0.12799674]
[1755855724484,1.31850234,113020.0,113010.0,0.09514674]
[1755855725079,1.31850234,113020.0,113010.0,0.12799674]
[1755855727183,1.31850234,113020.0,113010.0,0.09514674]
[1755855727488,1.10410234,113020.0,113010.0,0.09514674]
[1755855728487,1.10410234,113020.0,113010.0,0.12799674]
[1755855730290,1.23166234,113020.0,113010.0,0.12799674]
[1755855730689,1.23166234,113020.0,113010.0,0.09514674]
[1755855730884,1.23166234,113020.0,113010.0,0.05786674]
[1755855731086,1.59246234,113020.0,113010.0,0.04859674]
[1755855731790,1.59246234,113020.0,113010.0,0.07050674]
[1755855732188,1.59246234,113020.0,113010.0,0.07977674]
[1755855732996,1.59246234,113020.0,113010.0,0.04859674]
[1755855733189,1.56303056,113020.0,113010.0,0.04859674]
[1755855733390,1.84246234,113020.0,113010.0,0.04859674]
[1755855737293,1.84246234,113020.0,113010.0,0.04854004]
[1755855740386,2.12189614,113020.0,113010.0,0.04854004]
[1755855740896,2.12189614,113020.0,113010.0,0.07136004]
[1755855741497,2.12189614,113020.0,113010.0,0.08037004]
[1755855746290,2.12189614,113020.0,113010.0,0.02438004]
[1755855746696,2.18545439,113020.0,113000.0,0.41634]
[1755855746903,0.27943279,113010.0,113000.0,0.49017649]
[1755855747100,0.27943279,113010.0,113000.0,0.78399928]
[1755855747804,0.44775279,113010.0,113000.0,0.78399928]
[1755855748196,0.44775279,113010.0,113000.0,0.80791781]
[1755855749192,1.26119279,113010.0,113000.0,0.80791781]
[1755855750806,1.26119279,113010.0,113000.0,0.42319928]
[1755855752206,1.26119279,113010.0,113000.0,0.14376649]
[1755855752407,1.26119279,113010.0,113000.0,0.42319928]
[1755855757204,0.44775279,113010.0,113000.0,0.42319928]
[1755855757403,1.26103279,113010.0,113000.0,0.42319928]
[1755855757609,1.26103279,113010.0,113000.0,0.44136222]
[1755855757804,0.9816,113010.0,113000.0,0.44136222]
[1755855758010,1.26103279,113010.0,113000.0,0.44136222]
[1755855758219,1.26103279,113010.0,113000.0,0.15177796]
[1755855758409,1.26103279,113010.0,113000.0,0.41682075]
[1755855758712,1.26103279,113010.0,113000.0,0.46510835]
[1755855759915,1.26103279,113010.0,113000.0,0.18567556]
[1755855760107,1.26103279,113010.0,113000.0,0.46510835]
[1755855763015,1.62183279,113010.0,113000.0,0.18567556]
[1755855763218,0.72718558,113010.0,113000.0,0.08994556]
[1755855763517,1.26091279,113010.0,113000.0,0.18567556]
[1755855764515,1.26191279,113010.0,113000.0,0.18567556]
[1755855764717,1.26291279,113010.0,113000.0,0.18567556]
[1755855769320,1.26287279,113010.0,113000.0,0.18567556]
[1755855769622,1.62367279,113010.0,113000.0,0.18567556]
[1755855771220,1.26287279,113010.0,113000.0,0.18567556]
[1755855771417,1.26287279,113010.0,113000.0,0.16175829]
[1755855771618,1.62367279,113010.0,113000.0,0.16175829]
[1755855772617,1.62359279,113010.0,113000.0,0.16175829]
[1755855772920,1.26279279,113010.0,113000.0,0.16175829]
[1755855774523,1.26279279,113010.0,113000.0,0.14736829]
[1755855776222,1.26279279,113010.0,113000.0,0.12321294]
[1755855776616,1.26279279,113010.0,113000.0,0.08914294]
[1755855776821,1.26279279,113010.0,113000.0,0.07370294]
[1755855777810,1.26279279,113010.0,113000.0,0.05088294]
[1755855779022,1.26279279,113010.0,113000.0,0.07289294]
[1755855779725,0.44975279,113010.0,113000.0,0.07289294]
[1755855779925,1.26267279,113010.0,113000.0,0.07289294]
[1755855780716,1.62347279,113010.0,113000.0,0.07289294]
[1755855781623,1.34404,113010.0,113000.0,0.07289294]
[1755855781823,1.26259279,113010.0,113000.0,0.07289294]
[1755855782121,0.44975279,113010.0,113000.0,0.13929294]
[1755855782321,1.26259279,113010.0,113000.0,0.13929294]
[1755855782716,1.26255279,113010.0,113000.0,0.13929294]
[1755855782916,1.26255279,113010.0,113000.0,0.41872573]
[1755855783525,0.44975279,113010.0,113000.0,0.41872573]
[1755855783728,0.98312,113010.0,113000.0,0.41872573]
[1755855784027,0.98312,113010.0,113000.0,1.33367579]
[1755855785129,0.98212,113010.0,113000.0,1.33367579]
[1755855785827,0.98312,113010.0,113000.0,1.33367579]
[1755855786127,1.26255279,113010.0,113000.0,1.33367579]
[1755855786327,1.26155279,113010.0,113000.0,1.33367579]
[1755855786630,0.98212,113010.0,113000.0,1.33367579]
[1755855787126,0.17032,113010.0,113000.0,1.33367579]
[1755855787323,1.26247279,113010.0,113000.0,1.053443]
[1755855788336,1.26247279,113010.0,113000.0,1.02952573]
[1755855789823,1.09415279,113010.0,113000.0,0.75009294]
[1755855790022,1.09415279,113010.0,113000.0,1.02952573]
[1755855791527,1.09415279,113010.0,113000.0,0.66872573]
[1755855792631,1.09415279,113010.0,113000.0,1.02952573]
[1755855793234,1.09415279,113010.0,113000.0,0.66872573]
[1755855794235,1.09415279,113010.0,113000.0,1.02952573]
[1755855796839,1.09415279,113010.0,113000.0,0.66872573]
[1755855797741,1.09415279,113010.0,113000.0,1.02952573]
[1755855798438,1.09415279,113010.0,113000.0,1.053443]
[1755855801035,1.09415279,113010.0,113000.0,0.692643]
[1755855801239,1.09415279,113010.0,113000.0,1.053443]
[1755855801633,1.09415279,113010.0,113000.0,0.692643]
[1755855802340,1.09415279,113010.0,113000.0,1.053443]
[1755855802740,1.09415279,113010.0,113000.0,0.41321021]
[1755855802941,1.09415279,113010.0,113000.0,1.053443]
[1755855803944,1.09415279,113010.0,113000.0,0.692643]
[1755855804240,1.09415279,113010.0,113000.0,0.41321021]
[1755855804442,1.09415279,113010.0,113000.0,0.692643]
[1755855804941,1.09415279,113010.0,113000.0,0.41321021]
[1755855806143,1.09415279,113010.0,113000.0,0.4373332]
[1755855808144,1.09415279,113010.0,113000.0,0.71676599]
[1755855808145,1.09367279,113010.0,113000.0,0.71676599]
[1755855809351,0.81424,113010.0,113000.0,0.71676599]
[1755855809646,0.81424,113010.0,113000.0,0.46676599]
[1755855809847,1.09367279,113010.0,113000.0,0.46676599]
[1755855813448,1.09367279,113010.0,113000.0,0.82756599]
[1755855813650,1.09367279,113010.0,113000.0,0.46676599]
[1755855814251,1.09367279,113010.0,113000.0,0.82756599]
[1755855814755,1.09367279,113010.0,113000.0,0.46676599]
[1755855815553,1.09355279,113010.0,113000.0,0.46676599]
[1755855816054,0.28143279,113010.0,113000.0,0.82756599]
[1755855816253,0.002,113010.0,113000.0,0.5481332]
[1755855816458,1.09351279,113010.0,113000.0,0.82756599]
[1755855816655,0.28143279,113010.0,113000.0,0.82756599]
[1755855816958,0.81408,113010.0,113000.0,1.33308151]
[1755855817148,1.09351279,113010.0,113000.0,1.33308151]
[1755855817351,0.81408,113010.0,113000.0,1.35699878]
[1755855817546,1.09351279,113010.0,113000.0,1.35699878]
[1755855817744,1.09351279,113010.0,113000.0,1.07756599]
[1755855818443,1.09351279,113010.0,113000.0,0.5481332]
[1755855818649,1.09351279,113010.0,113000.0,0.1845732]
[1755855818850,0.002,113010.0,113000.0,0.46400599]
[1755855819144,1.09343279,113010.0,113000.0,0.82480599]
[1755855819359,1.09343279,113010.0,113000.0,0.80088872]
[1755855819553,1.09343279,113010.0,113000.0,0.82480599]
[1755855819956,0.814,113010.0,113000.0,0.82480599]
[1755855820155,1.09343279,113010.0,113000.0,0.82480599]
[1755855820359,1.09343279,113010.0,113000.0,0.5453732]
[1755855820559,1.09343279,113010.0,113000.0,0.82480599]
[1755855820953,0.002,113010.0,113000.0,0.82480599]
[1755855821158,1.09343279,113010.0,113000.0,0.82480599]
[1755855822254,0.814,113010.0,113000.0,0.5453732]
[1755855823258,0.814,113010.0,113000.0,0.52145593]
[1755855825462,0.81392,113010.0,113000.0,0.77145593]
[1755855825960,0.002,113010.0,113000.0,0.77145593]
[1755855826161,0.81388,113010.0,113000.0,0.77145593]
[1755855826360,0.63023826,113010.0,113000.0,1.05086494]
[1755855827361,0.63023826,113010.0,113000.0,0.77145593]
[1755855828362,0.63023826,113010.0,113000.0,0.74733294]
[1755855830165,0.35183782,113020.0,113000.0,0.74733294]
[1755855830364,0.8118,113010.0,113000.0,0.42646294]
[1755855830766,0.8118,113010.0,113000.0,0.47330294]
[1755855830965,0.8118,113010.0,113000.0,0.49774294]
[1755855837966,1.09120901,113010.0,113000.0,0.49774294]
[1755855838163,1.09120901,113010.0,113000.0,0.52164581]
[1755855838367,0.27940901,113010.0,113000.0,0.52164581]
[1755855838569,1.09100901,113010.0,113000.0,0.52164581]
[1755855839066,0.8116,113010.0,113000.0,0.52164581]
[1755855839765,0.8116,113010.0,113000.0,0.52154581]
[1755855840268,0.28827957,113020.0,113000.0,0.46437581]
[1755855840568,0.28827957,113020.0,113010.0,0.11862]
[1755855840773,1.09983957,113020.0,113010.0,0.11862]
[1755855841571,1.10083957,113020.0,113010.0,0.11862]
[1755855842070,1.10183957,113020.0,113010.0,0.11862]
[1755855842270,0.82243056,113020.0,113010.0,0.11862]
[1755855842471,1.10183957,113020.0,113010.0,0.11862]
[1755855843266,1.10283957,113020.0,113010.0,0.11862]
[1755855843665,1.35275957,113020.0,113010.0,0.11862]
[1755855843973,0.82335056,113020.0,113010.0,0.11862]
[1755855844273,1.38211098,113020.0,113010.0,0.39800021]
[1755855844571,0.82335056,113020.0,113010.0,0.39800021]
[1755855844772,1.38211098,113020.0,113010.0,0.39800021]
[1755855844972,0.82335056,113020.0,113010.0,0.39800021]
[1755855845172,1.38211098,113020.0,113010.0,0.39800021]
[1755855845568,1.38011098,113020.0,113010.0,0.39800021]
[1755855845778,1.38111098,113020.0,113010.0,0.39800021]
[1755855845976,1.38111098,113020.0,113010.0,0.11862]
[1755855847074,1.38011098,113020.0,113010.0,0.05586]
[1755855847275,0.56863098,113020.0,113010.0,0.10451]
[1755855847474,1.38003098,113020.0,113010.0,0.11862]
[1755855848171,0.82127056,113020.0,113010.0,0.11862]
[1755855848479,0.56863098,113020.0,113010.0,0.11862]
[1755855848674,1.38003098,113020.0,113010.0,0.11862]
[1755855849280,1.38003098,113020.0,113010.0,0.10451]
[1755855850773,1.74083098,113020.0,113010.0,0.02444]
[1755855851478,1.74083098,113020.0,113010.0,0.04665]
[1755855853777,1.17943098,113020.0,113010.0,0.02444]
[1755855853975,1.17943098,113020.0,113000.0,0.05607581]
[1755855853976,1.17943098,113020.0,113000.0,0.05171294]
[1755855854176,1.17204,113010.0,113000.0,0.07392294]
[1755855854481,1.45142021,113010.0,113000.0,0.07392294]
[1755855855074,1.73080042,113010.0,113000.0,0.07392294]
[1755855855381,1.09062021,113010.0,113000.0,0.07492294]
[1755855856084,1.45142021,113010.0,113000.0,0.07492294]
[1755855856283,1.23766021,113010.0,113000.0,0.07492294]
[1755855859786,1.23756021,113010.0,113000.0,0.07492294]
[1755855860177,1.76694042,113010.0,113000.0,0.04350294]
[1755855860382,2.12774042,113010.0,113000.0,0.04350294]
[1755855862480,2.12874042,113010.0,113000.0,0.04250294]
[1755855867392,1.84936021,113010.0,113000.0,0.04250294]
[1755855868393,1.84926021,113010.0,113000.0,0.06357294]
[1755855869688,1.59926021,113010.0,113000.0,0.06357294]
[1755855870496,1.59914021,113010.0,113000.0,0.06357294]
[1755855872994,1.59914021,113010.0,113000.0,0.04250294]
[1755855873387,1.87852042,113010.0,113000.0,0.04250294]
[1755855875194,1.59914021,113010.0,113000.0,0.04250294]
[1755855875896,1.87852042,113010.0,113000.0,0.04250294]
[1755855877103,1.87852042,113010.0,113000.0,0.06357294]
[1755855878409,1.87840042,113010.0,113000.0,0.06357294]
[1755855878709,1.87840042,113010.0,113000.0,0.04551]
[1755855881310,1.94195867,113010.0,113000.0,0.04551]
[1755855882911,1.66257846,113010.0,113000.0,0.04551]
[1755855883712,1.94195867,113010.0,113000.0,0.04551]
[1755855885311,1.87840042,113010.0,113000.0,0.04551]
[1755855886109,2.12840042,113010.0,112980.0,0.43117829]
[1755855886316,0.64018021,113000.0,112990.0,0.02408]
[1755855887417,0.91956042,113000.0,112990.0,0.02408]
[1755855888314,0.91956042,113000.0,112990.0,0.02508]
[1755855888916,1.18536042,113000.0,112990.0,0.02508]
[1755855889515,1.18636042,113000.0,112990.0,0.02408]
[1755855893816,0.6276,113000.0,112990.0,0.02408]
[1755855894017,1.99676042,113000.0,112990.0,0.02408]
[1755855894819,1.438,113000.0,112990.0,0.02408]
[1755855895015,1.99676042,113000.0,112990.0,0.02408]
[1755855895315,1.99676042,113000.0,112990.0,0.05541]
[1755855895519,1.63596042,113000.0,112990.0,0.05541]
[1755855896227,1.63596042,113000.0,112990.0,0.08846]
[1755855896228,0.2668,113000.0,112990.0,0.08846]
[1755855896521,1.07716,113000.0,112990.0,0.39740021]
[1755855896722,0.54618021,113000.0,112990.0,0.39740021]
[1755855896923,1.35654021,113000.0,112990.0,0.39740021]
[1755855897328,1.35654021,113000.0,112990.0,0.75820021]
[1755855897525,0.54618021,113000.0,112990.0,0.75820021]
[1755855897826,1.09070021,113000.0,112990.0,0.75820021]
[1755855900628,0.28038021,113000.0,112990.0,0.75820021]
[1755855901016,0.81128,113000.0,112990.0,1.00820021]
[1755855901424,1.09066021,113000.0,112990.0,1.00820021]
[1755855903630,0.81128,113000.0,112990.0,1.00820021]
[1755855903828,1.09066021,113000.0,112990.0,1.00820021]
[1755855906527,1.37004042,113000.0,112990.0,1.00820021]
[1755855907935,1.09066021,113000.0,112990.0,1.00820021]
[1755855909232,1.09066021,113000.0,112990.0,0.72882]
[1755855909536,1.37004042,113000.0,112990.0,1.00820021]
[1755855909931,0.81128,113000.0,112990.0,0.72882]
[1755855910137,1.09066021,113000.0,112990.0,1.00820021]
[1755855911529,1.09066021,113000.0,112990.0,0.72882]
[1755855911725,1.09066021,113000.0,112990.0,1.00820021]
[1755855914846,1.09066021,113000.0,112990.0,0.64740021]
[1755855916135,1.09066021,113000.0,112990.0,0.61435021]
[1755855916340,1.09066021,113000.0,112990.0,0.08497]
[1755855916641,1.09066021,113000.0,112990.0,0.11802]
[1755855916844,1.37004042,113000.0,112990.0,0.08497]
[1755855917141,1.62004042,113000.0,112990.0,0.07097]
[1755855917742,1.62004042,113000.0,112990.0,0.10548]
[1755855917941,1.62004042,113000.0,112990.0,0.12005]
[1755855918445,1.06128,113000.0,112990.0,0.12005]
[1755855918647,1.62004042,113000.0,112990.0,0.12005]
[1755855918842,1.76532042,113000.0,112990.0,0.12005]
[1755855919147,1.20656,113000.0,112990.0,0.12005]
[1755855919547,1.76532042,113000.0,112990.0,0.12005]
[1755855920847,0.39628,113000.0,112990.0,0.12005]
[1755855921045,0.95504042,113000.0,112990.0,0.12005]
[1755855921251,1.76484042,113000.0,112990.0,0.39943021]
[1755855923255,1.76484042,113000.0,112990.0,0.12005]
[1755855923551,1.76484042,113000.0,112990.0,0.39943021]
[1755855923744,0.95504042,113000.0,112990.0,0.39943021]
[1755855923940,1.23542021,113000.0,112990.0,0.33554]
[1755855924144,0.42566021,113000.0,112990.0,1.01023021]
[1755855924348,1.23542021,113000.0,112990.0,0.64943021]
[1755855924845,1.51480042,113000.0,112990.0,1.01023021]
[1755855925045,1.36952042,113000.0,112990.0,1.01023021]
[1755855926252,1.36948042,113000.0,112990.0,1.01023021]
[1755855928450,1.09010021,113000.0,112990.0,1.01023021]
[1755855928853,1.09010021,113000.0,112990.0,0.73085]
[1755855929051,0.001,113000.0,112990.0,1.01023021]
[1755855929252,0.81064,113000.0,112990.0,1.01023021]
[1755855929647,0.001,113000.0,112990.0,0.76023021]
[1755855929852,1.08998021,113000.0,112990.0,0.76023021]
[1755855930251,1.08998021,113000.0,112990.0,0.76123021]
[1755855930252,0.8106,113000.0,112990.0,0.76123021]
[1755855930452,1.08898021,113000.0,112990.0,0.76223021]
[1755855930758,0.8096,113000.0,112990.0,0.76223021]
[1755855931055,0.8096,113000.0,112990.0,0.76123021]
[1755855931250,0.73442881,113020.0,113000.0,0.01457]
[1755855931459,1.01380902,113020.0,113010.0,0.12091]
[1755855931657,1.82340902,113020.0,113010.0,0.12091]
[1755855932561,1.18530401,113020.0,113010.0,0.12091]
[1755855932861,1.68039098,113020.0,113010.0,0.12091]
[1755855933862,1.56523098,113020.0,113010.0,0.12091]
[1755855934158,1.56623098,113020.0,113010.0,0.12091]
[1755855934566,1.00747056,113020.0,113010.0,0.12091]
[1755855934753,1.28685077,113020.0,113010.0,0.12091]
[1755855936158,1.00747056,113020.0,113010.0,0.12091]
[1755855936363,1.28685077,113020.0,113010.0,0.12091]
[1755855939465,1.00747056,113020.0,113010.0,0.12091]
[1755855939850,1.56623098,113020.0,113010.0,0.12091]
[1755855940050,1.56623098,113020.0,113010.0,0.10634]
[1755855940560,1.56623098,113020.0,113010.0,0.40029021]
[1755855940561,1.28665077,113020.0,113010.0,0.40029021]
[1755855940756,1.00727056,113020.0,113010.0,0.40029021]
[1755855940963,1.28665077,113020.0,113010.0,0.40029021]
[1755855941463,0.47729077,113020.0,113010.0,0.40029021]
[1755855941663,1.28661077,113020.0,113010.0,0.40029021]
[1755855941866,1.00723056,113020.0,113010.0,0.40029021]
[1755855942068,0.47729077,113020.0,113010.0,0.12091]
[1755855942265,1.56595098,113020.0,113010.0,0.40029021]
[1755855942460,1.37010371,113020.0,113010.0,0.40029021]
[1755855942761,0.00206329,113020.0,113010.0,0.92967042]
[1755855943060,0.19664,113040.0,113020.0,0.07267]
[1755855943260,1.00592,113040.0,113030.0,1.04047042]
[1755855943464,1.00592,113040.0,113030.0,1.65207042]
[1755855943465,0.19664,113040.0,113030.0,1.65207042]
[1755855943962,0.16164,113040.0,113030.0,1.65207042]
[1755855944464,0.16464,113040.0,113030.0,1.65207042]
[1755855944863,0.16364,113040.0,113030.0,1.65207042]
[1755855945770,0.002,113040.0,113030.0,1.65207042]
[1755855946069,0.003,113040.0,113030.0,1.65207042]
[1755855946272,0.89882295,113050.0,113030.0,1.09331]
[1755855946273,0.08958295,113050.0,113030.0,1.09331]
[1755855946470,0.89882295,113050.0,113040.0,0.48171]
[1755855946773,0.89882295,113050.0,113040.0,1.01084895]
[1755855947474,0.89982295,113050.0,113040.0,1.01084895]
[1755855948175,0.02166,113050.0,113040.0,1.01084895]
[1755855948474,0.02166,113050.0,113040.0,0.73171]
[1755855948675,0.8319,113050.0,113040.0,1.01084895]
[1755855948972,0.8329,113050.0,113040.0,1.2899879]
[1755855950072,0.8329,113050.0,113040.0,1.01084895]
[1755855950272,0.02366,113050.0,113040.0,1.01084895]
[1755855951069,0.59816,113080.0,113050.0,0.118]
[1755855951273,0.59816,113080.0,113060.0,0.118]
[1755855951274,0.003,113070.0,113060.0,0.118]
[1755855951467,0.003,113070.0,113060.0,0.42625368]
[1755855951666,1.07241,113080.0,113070.0,0.118]
[1755855951866,0.8836572,113080.0,113070.0,0.4788]